Workbook

Sheet Backpacking
A1: Trip length | K1: sum cj
B2: Days = | C2: 7 | D2: this is set up to require days to be entered | H2: calories per day = | J2: 1500 | K2: =C2*J2 -> 10500 | M2: Enter red | O2: figures in
B3: Days = | C3: 2 | D3: this is set up to require days to be entered | H3: calories per day = | J3: 2500 | K3: =C3*J3 -> 5000 | M3: items
B4: Days = | C4: 0 | D4: this is set up to require days to be entered | H4: calories per day = | J4: 3000 | K4: =C4*J4 -> 0
B5: Days = | C5: 0 | D5: this is set up to require days to be entered | H5: calories per day = | J5: 4000 | K5: 0
B6: Days = | C6: 0 | D6: this is set up to require days to be entered | H6: calories per day = | J6: 5000 | K6: 0
B8: Totals= | C8: =SUM(C2:C7) -> 9 | K8: =SUM(K2:K6) -> 15500
B12: Weeks = | C12: =C8/7 -> 1.285714286 | H12: calorie factor = | J12: =K8/(C8*1500) -> 1.148148148 | O12: this column
B13: Months = | C13: =C8*12/365 -> 0.295890411 | O13: from the web
B15: #people= | C15: 1 | D15: one to four
H16: #food stuff sacks = | J16: 1 | K16: sm + lg | O16: or label
A17: Travel-camping material is in a blue font
A19: Class | B19: Sub-class | K19: all weights are per person | T19: Modifications to consider
A20: Food | B20: Meal | D20: 1=take, 0=no | E20: unit | F20: oz/unit | G20: units/day | H20: units /week | I20: units/month | J20: weeks | K20: /trip | L20: units (total) | M20: oz (total) | N20: lb | O20: cal/oz | P20: cal/week | Q20: cal/day | R20: cal/lb | U20: Simplification
A21: =K8/C8 -> 1722.222222 | B21: Breakfast | U21: More than one person, assuming similar personal gear…
A22: target | C22: Granola (~116 cal/oz) | D22: 1 | E22: cup | F22: 4 | H22: =5*J12 -> 5.740740741 | J22: =C12 -> 1.285714286 | L22: =M22/F22 -> 7.380952381 | M22: =D22*F22*H22*J22 -> 29.52380952 | N22: =M22/16 -> 1.845238095 | O22: 116 | P22: =H22*F22*O22*D22 -> 2663.703704 | Q22: =P22/7 -> 380.5291005 | R22: =O22*16 -> 1856 | V22: … and shared gear, e.g., one stove / four people
A23: mean cal/day | C23: Milk powder | D23: 0 | E23: cup | F23: 6.5 | H23: =J12 -> 1.148148148 | J23: =C12 -> 1.285714286 | L23: =M23/F23 -> 0 | M23: =D23*F23*H23*J23 -> 0 | N23: =M23/16 -> 0 | O23: 100 | P23: =H23*F23*O23*D23 -> 0 | Q23: =P23/7 -> 0 | R23: =O23*16 -> 1600 | U23: Automated entry of new items
C24: Milkman | D24: 1 | E24: packet | F24: 3.44 | H24: =ROUNDUP((C2+C3)/4,0) -> 3 | L24: =H24*C12*D24 -> 3.857142857 | M24: =D24*H24*3.44 -> 10.32 | N24: 0.645 | O24: 100 | P24: =O24*M24 -> 1032 | Q24: =P24/7 -> 147.4285714 | R24: 1600
A25: =SUM(C2:C6) -> 9 | C25: Coffee | D25: 1 | E25: oz | F25: 1 | G25: 1.5 | H25: =G25*7 -> 10.5 | J25: =C12 -> 1.285714286 | L25: 13.5 | M25: =D25*F25*H25*J25 -> 13.5 | N25: 0.84375 | O25: 0 | P25: =H25*F25*O25*D25 -> 0 | Q25: 0 | R25: 0
A26: days | G26: 5 heaping tbsp
C27: Coffee, freeze dried, consider
C28: Sugar (~110 cal/oz) | D28: 1 | E28: oz | F28: 1 | H28: 10 | J28: =C12 -> 1.285714286 | L28: =M28/F28 -> 12.85714286 | M28: =D28*F28*H28*J28 -> 12.85714286 | N28: 0.8035714286 | O28: 110 | P28: =H28*F28*O28*D28 -> 1100 | Q28: 157.1428571 | R28: 1760
C29: Vitamins, meds, ibuprofen | D29: 1 | E29: oz | F29: 1 | H29: 2.5 | J29: =C12 -> 1.285714286 | L29: =M29/F29 -> 3.214285714 | M29: =D29*F29*H29*J29 -> 3.214285714 | N29: =M29/16 -> 0.2008928571 | O29: 0 | P29: =H29*F29*O29*D29 -> 0 | Q29: 0 | R29: 0 | T29: qd-4 ibu 1 allegra 100mg losartan 25 mg hctz 1(b,C,D,E,Glucosamine, Multi)
A30: may sustitute | C30: Teas, drinks | D30: 1 | E30: oz | F30: 1 | H30: 1.5 | J30: =C12 -> 1.285714286 | L30: 1.928571429 | M30: =D30*F30*H30*J30 -> 1.928571429 | N30: =M30/16 -> 0.1205357143 | O30: 0 | P30: =H30*F30*O30*D30 -> 0 | Q30: 0 | R30: 0
A31: amounts | C31: Condensed milk | D31: 0 | E31: can | F31: 14 | J31: =C12 -> 1.285714286 | K31: 1 | M31: =D31*F31*H31*J31 -> 0 | N31: =M31/16 -> 0 | O31: 100 | P31: =D31*O31*F31/J31 -> 0 | Q31: 0 | R31: 1600
B32: Trail
C33: Sesame sticks | D33: 1 | E33: fist | F33: 1.333333333 | H33: =4*J12 -> 4.592592593 | J33: =C12 -> 1.285714286 | L33: =M33/F33 -> 5.904761905 | M33: =D33*F33*H33*J33 -> 7.873015873 | N33: =M33/16 -> 0.4920634921 | O33: 155 | P33: =H33*F33*O33*D33 -> 949.1358025 | Q33: 135.5908289 | R33: 2480
A34: 1 cup = 2 2/3 fist | C34: Nuts (Peanuts, Cashews ~160 cal/oz) | D34: 1 | E34: fist | F34: 1.666666667 | H34: =4*J12 -> 4.592592593 | J34: =C12 -> 1.285714286 | L34: =M34/F34 -> 5.904761905 | M34: =D34*F34*H34*J34 -> 9.841269841 | N34: 0.6150793651 | O34: 160 | P34: =H34*F34*O34*D34 -> 1224.691358 | Q34: 174.9559083 | R34: 2560
C35: Dried fruit | D35: 1 | E35: fist | F35: 2.166666667 | H35: =4*J12 -> 4.592592593 | J35: =C12 -> 1.285714286 | L35: 5.904761905 | M35: =D35*F35*H35*J35 -> 12.79365079 | N35: 0.7996031746 | O35: 100 | P35: =H35*F35*O35*D35 -> 995.0617284 | Q35: 142.1516755 | R35: 1600
B36: Dinner
C37: Rice, instant | D37: 1 | E37: fist | F37: 1.333333333 | H37: =ROUNDDOWN((7-H40+2)*J12,0) -> 6 | J37: =C12 -> 1.285714286 | L37: =M37/F37 -> 7.714285714 | M37: =D37*F37*H37*J37 -> 10.28571429 | N37: =M37/16 -> 0.6428571429 | O37: 115 | P37: =H37*F37*O37*D37 -> 920 | Q37: 131.4285714 | R37: 1840
C38: Rice, regular, to work on
C39: Beans | D39: 1 | E39: fist | F39: 1.666666667 | H39: =ROUNDDOWN((6-H40+2)*J12,0) -> 5 | J39: =C12 -> 1.285714286 | L39: =M39/F39 -> 6.428571429 | M39: 10.71428571 | N39: =M39/16 -> 0.6696428571 | O39: 102 | P39: =H39*F39*O39*D39 -> 850 | Q39: 121.4285714 | R39: 1632
C40: Ramen | D40: 1 | E40: packet | F40: 2.5 | H40: =ROUNDUP(2*J12,0) -> 3 | J40: =C12 -> 1.285714286 | L40: =M40/F40 -> 3.857142857 | M40: 9.642857143 | N40: 0.6026785714 | O40: 102 | P40: 765 | Q40: 109.2857143 | R40: 1632
C41: Broths | D41: 1 | E41: packet | F41: 0.5 | H41: =ROUNDUP(2*J12,0) -> 3 | J41: =C12 -> 1.285714286 | L41: =M41/F41 -> 3.857142857 | M41: 1.928571429 | N41: 0.1205357143 | O41: 70 | P41: 105 | Q41: 15 | R41: 1120
C42: Jerky | D42: 1 | E42: packet | F42: 3 | H42: =ROUNDUP(J12,0) -> 2 | J42: =C12 -> 1.285714286 | L42: 2.571428571 | M42: 7.714285714 | N42: 0.4821428571 | O42: 116 | P42: 696 | Q42: 99.42857143 | R42: 1856
C43: Fruit bars | D43: 1 | E43: bar | F43: 1.2 | H43: =ROUNDUP(5*J12,0) -> 6 | J43: =C12 -> 1.285714286 | L43: 7.714285714 | M43: 9.257142857 | N43: 0.5785714286 | O43: 100 | P43: 720 | Q43: 102.8571429 | R43: 1600
C44: Turmeric | D44: 0 | E44: oz | F44: 1 | H44: 1 | J44: =C12 -> 1.285714286 | L44: 0 | M44: 0 | N44: 0 | O44: 0 | P44: 0 | Q44: 0 | R44: 0
C45: Jalapenos | D45: 1 | E45: jalapeno | F45: 0.5 | H45: 2 | J45: =C12 -> 1.285714286 | L45: 2.571428571 | M45: 1.285714286 | N45: 0.08035714286 | O45: 0 | P45: 0 | Q45: 0 | R45: 0
C46: Garlic, packets | D46: 1 | E46: packet | F46: 1.5 | H46: 1 | J46: =C12 -> 1.285714286 | L46: =ROUNDUP(M46/F46,0) -> 2 | M46: 1.928571429 | N46: 0.1205357143 | O46: 0 | P46: 0 | Q46: 0 | R46: 0
C47: Onion, thumb dia | D47: 1 | E47: onion | F47: 6 | H47: 1 | J47: =C12 -> 1.285714286 | L47: 1.285714286 | M47: 7.714285714 | N47: 0.4821428571 | O47: 0 | P47: 0 | Q47: 0 | R47: 0
C48: Spicecollection (review) | D48: 1 | E48: oz | F48: 1 | H48: 3 | J48: =C12 -> 1.285714286 | L48: 3.857142857 | M48: 3.857142857 | N48: 0.2410714286 | O48: 0 | P48: 0 | Q48: 0 | R48: 0
C49: Cajun seasoning etc
C50: Salt | D50: 1 | E50: oz | F50: 1 | H50: 2 | J50: =C12 -> 1.285714286 | L50: 2.571428571 | M50: 2.571428571 | N50: 0.1607142857 | O50: 0 | P50: 0 | Q50: 0 | R50: 0
C51: Veg oil (~240 cal/oz) | D51: 1 | E51: oz | F51: 1 | H51: =2*J12 -> 2.296296296 | J51: =C12 -> 1.285714286 | L51: 2.952380952 | M51: 2.952380952 | N51: 0.1845238095 | O51: 240 | P51: =H51*F51*O51*D52 -> 0 | Q51: 0 | R51: 3840
B52: Stuff sacks | D52: 0 | E52: sack | F52: 4.5 | K52: =J16 -> 1 | L52: =K52 -> 1 | M52: =D52*F52*L52 -> 0 | N52: 0
B53: Bearvault | D53: 1 | E53: vault | F53: 41 | K53: 1 | L53: =K53 -> 1 | M53: =D53*F53*L53 -> 41 | N53: =M53/16 -> 2.5625
A54: Food, total (one person) | M54: =SUM(M22:M53) -> 212.704127 | N54: =M54/16 -> 13.29400794 | P54: =SUM(P22:P51) -> 12020.59259 | Q54: =P54/7 -> 1717.227513 | R54: =P54/N54 -> 904.2113296
A55: Backpacker’s food—am = granola and/or alt | trail = nuts & fruits | pm = rice, beans, dry/fresh veg | and variety—try out soups | crackers and more | Kool-Aid
A56: Granola alternates and supplements—Cream of wheat savory | and with sugar and blueberries | and made-up mixes from co-op bulk
C58: Utensils | D58: 1 | E58: item(s) | F58: 8.5 | K58: 1 | M58: =D58*F58 -> 8.5 | N58: =M58/16 -> 0.53125
C59: Stove-MSR Dragonfly | D59: 0 | E59: item(s) | F59: 14.5 | K59: 1 | M59: =D59*F59*K59/C15 -> 0 | N59: =M59/16 -> 0
C60: Stove-Pocket rocket | D60: 1 | E60: item(s) | F60: 3.5 | K60: 1 | M60: =D60*F60*K60/C15 -> 3.5 | N60: =M60/16 -> 0.21875
C61: Heat shield | D61: 0 | E61: item(s) | F61: 2.5 | K61: 1 | M61: =D61*F61*K61/C15 -> 0 | N61: 0
C62: Pot, titanium | D62: 1 | E62: item(s) | F62: 8 | K62: 1 | M62: =D62*F62*K62/C15 -> 8 | N62: 0.5
C63: Pot, stainless, 0.50 gal | D63: 0 | E63: item(s) | F63: 20 | K63: 1 | M63: =D63*F63*K63/C15 -> 0 | N63: 0
C64: Pot, stainless, 0.25 gal | D64: 0 | E64: item(s) | F64: 13 | K64: 1 | M64: =D64*F64*K64/C15 -> 0 | N64: 0
C65: Fuel bottle, 1 l tr/ 33oz | D65: =ROUNDUP(C12,0) -> 2 | E65: item(s) | F65: 7.6 | K65: =ROUNDUP(H69*C15/32,0) -> 2 | M65: =D65*F65*K65/C15 -> 30.4 | N65: =M65/16 -> 1.9
C66: Fuel bottle, 591 ml / 20oz | D66: =0 -> 0 | E66: item(s) | F66: 6 | K66: 1 | M66: 0 | N66: =M66/16 -> 0
C67: Fuel bottle, 325 ml / 11oz | D67: 0 | E67: item(s) | F67: 4 | K67: 1 | M67: 0 | N67: =M67/16 -> 0
C69: Fuel | E69: fl oz | F69: 0.7 | H69: =(32*(1+(C15-1)*0.5)*C12)/C15 -> 41.14285714 | M69: =F69*H69 -> 28.8 | N69: =M69/16 -> 1.8
C71: MSR Pocket Rocket Deluxe (get?) | D71: 0 | E71: item(s) | F71: 2.9 | G71: currently, a one person item | K71: 1 | M71: =D71*F71 -> 0 | N71: =M71/16 -> 0
C72: MSR cannisters 7.4 oz | D72: 0 | E72: item(s) | F72: 7.4 | G72: currently, a one person item | J72: =C12 -> 1.285714286 | M72: =D72*F72 -> 0 | N72: 0
C73: MSR cannisters 13.1 oz | D73: 1 | E73: item(s) | F73: 13.1 | G73: currently, a one person item | J73: =C12 -> 1.285714286 | M73: =IF(C8<3,7.4,0) + IF(AND(C8>2,C8<6),13.1,0) + IF(AND(C8>5,C8<8),20.5,0) + IF(AND(C8>7,C8<11),26.2,0) + IF(AND(C8>10,C8<13),33.6,0) + IF(AND(C8>12,C8<16),39.3,0) -> 26.2 | N73: =M73/16 -> 1.6375
A74: Cooking… total | M74: =SUM(M58:M73) -> 105.4 | N74: 6.5875
A76: Hiking, travel | I76: include in pack weight, 0 = no
C77: Backpack, Osprey, Ejos | D77: 1 | E77: item(s) | F77: 43 | I77: 1 | M77: =D77*F77*I77 -> 43 | N77: =M77/16 -> 2.6875
C78: Pack Cover, Osprey, Large | D78: 0 | E78: item(s) | F78: 3 | I78: 1 | M78: 0 | N78: =M78/16 -> 0
C79: Backpack, Osprey, Argon 85M | D79: 0 | E79: item(s) | F79: 104 | I79: 1 | M79: 0 | N79: =M79/16 -> 0
C80: Olive Jansport daypack | D80: 0 | E80: item(s) | F80: 17 | I80: 1 | M80: 0 | N80: =M80/16 -> 0
C81: Binoculars | D81: 0 | E81: item(s) | F81: 8.5 | I81: 1 | M81: 0 | N81: =M81/16 -> 0
C82: Rifle, .30-06 | D82: 0 | E82: item(s) | F82: 144 | I82: 1 | M82: 0 | N82: =M82/16 -> 0
C83: Shoes, ankle high | D83: 0 | E83: item(s) | F83: 48 | I83: 0 | M83: 0 | N83: 0
C84: Shoes, running | D84: 1 | E84: item(s) | F84: 30 | I84: 0 | M84: 0 | N84: 0
C85: Sneakers | D85: 0 | E85: item(s) | F85: 29 | I85: 1 | M85: 0 | N85: 0
C86: Sandals | D86: 1 | E86: item(s) | F86: 14 | I86: 1 | M86: 14 | N86: 0.875
C87: Shoes, dress | D87: 0 | E87: item(s) | F87: 26 | I87: 1 | M87: 0 | N87: =M87/16 -> 0
C88: MSR Snowshoes | D88: 0 | E88: item(s) | F88: 59 | I88: 1 | M88: 0 | N88: 0
C89: … MSR Snowshoe extebsuibs | D89: 0 | E89: item(s) | F89: 17 | I89: 1 | M89: 0 | N89: 0
C90: Cross-country skis and poles | D90: 0 | E90: item(s) | F90: 118 | I90: 1 | M90: 0 | N90: 0
C91: Crampons | D91: 0 | E91: item(s) | F91: 40.75 | I91: 1 | M91: 0 | N91: 0
C92: Trekking poles, Leki | D92: 1 | E92: item(s) | F92: 20 | I92: 1 | M92: 20 | N92: =M92/16 -> 1.25
C93: Insect netting | D93: 1 | E93: item(s) | F93: 1.5 | I93: 1 | M93: 1.5 | N93: 0.09375
C94: Pouch-misc items | D94: 1 | E94: item(s) | F94: 16.5 | I94: 1 | M94: 16.5 | N94: 1.03125
C95: Albuterol | D95: 0 | E95: item(s) | F95: 1.5 | I95: 1 | M95: 0 | N95: 0
C96: Maps, paper | D96: 1 | E96: item(s) | F96: 9.5 | I96: 1 | M96: 9.5 | N96: 0.59375
C97: Simple manual | D97: 2 | E97: item(s) | F97: 1.5 | I97: 1 | M97: 3 | N97: 0.1875
C98: Camera | D98: 0 | E98: item(s) | F98: 6.5 | I98: 1 | M98: 0 | N98: 0
C99: Phone | D99: 1 | E99: item(s) | F99: 3.5 | I99: 1 | M99: 3.5 | N99: 0.21875
C100: Cards, check, cash, key | D100: 1 | E100: item(s) | F100: 2 | I100: 1 | M100: 2 | N100: 0.125
C101: Batteries | D101: 1 | E101: item(s) | F101: 4.5 | I101: 1 | M101: 4.5 | N101: =M101/16 -> 0.28125
C102: Watch | D102: 1 | E102: item(s) | F102: 2 | I102: 1 | M102: 2 | N102: 0.125
C103: Plastic bags | D103: 1 | E103: item(s) | F103: 0.5 | I103: 1 | M103: 0.5 | N103: 0.03125
C105: H2O filter straw | D105: 1 | E105: item(s) | F105: 3 | I105: 1 | M105: =D105*F105*I105 -> 3 | N105: 0.1875
C106: 64 oz Platypus H2O bladder | D106: 0 | E106: item(s) | F106: 6 | I106: 1 | M106: =D106*F106*I106 -> 0 | N106: 0
C107: 32 oz Nalgene H2O bottle | D107: 1 | E107: item(s) | F107: 7 | I107: 1 | M107: =D107*F107*I107 -> 7 | N107: 0.4375
C108: H2O for platypus | D108: 0 | E108: oz | F108: 1 | G108: 64 | I108: 1 | M108: =D108*F108*G108*I108 -> 0 | N108: 0
C109: H2O for nalgene | D109: 0 | E109: oz | F109: 1 | G109: 32 | I109: 1 | M109: =D109*F109*G109*I109 -> 0 | N109: 0
A110: Hiking, total | M110: =SUM(M77:M109) -> 130 | N110: 8.125
A112: Camping
C113: Tent (Nemo, Elite 1p) + footprint | D113: 1 | E113: items(s) | F113: 39 | M113: =D113*F113 -> 39 | N113: =M113/16 -> 2.4375 | O113: take only if one person
C114: Tent (Sierra Designs, Flashlight) | D114: 0 | E114: items(s) | F114: 78 | M114: =D114*F114/2 -> 0 | N114: 0 | O114: take if two people
C115: Bivvy | D115: 0 | E115: items(s) | F115: 17 | M115: =D115*F115 -> 0 | N115: 0 | O115: take only if one person
C116: Bivvy - OR | D116: 0 | E116: items(s) | F116: 21 | M116: =D116*F116 -> 0 | N116: 0 | O116: take only if one person
C117: Tarp 9'x9' | D117: 0 | E117: items(s) | F117: 33 | M117: =D117*F117 -> 0 | N117: 0
C118: Tarp 8'x6' | D118: 0 | E118: items(s) | F118: 25 | M118: =D118*F118 -> 0 | N118: 0
C119: Hyperlite tarp | D119: 0 | E119: items(s) | F119: 20 | M119: =D119*F119 -> 0 | N119: =M119/16 -> 0
C120: Ridge 10 stakes, lines 10 - 12', guys 4 -6'
C121: Ground sheet (separate) | D121: 0 | E121: items(s) | F121: 13 | M121: =D121*F121 -> 0 | N121: 0
C122: Footprint - MSR
C123: Sleeping bag, Western Mntnring | D123: 1 | E123: items(s) | F123: 18 | M123: =D123*F123 -> 18 | N123: =M123/16 -> 1.125
C124: Sleeping bag, Marmot | D124: 0 | E124: items(s) | F124: 34 | M124: 0 | N124: =M124/16 -> 0
C125: Ground pad | D125: 1 | E125: items(s) | F125: 7.5 | M125: 7.5 | N125: 0.46875
C126: Rope, straps | D126: 1 | E126: items(s) | F126: 3.5 | M126: 3.5 | N126: 0.21875
C127: Med sack | D127: 1 | E127: items(s) | F127: 16 | M127: 16 | N127: 1
C128: Toilet | D128: 1 | E128: items(s) | F128: 3.5 | M128: 3.5 | N128: 0.21875
A129: Camping, total | M129: =SUM(M113:M128) -> 87.5 | N129: 5.46875
A131: Clothes | B131: * summer, general | D131: Count | G131: 1=take, 0=no | I131: include in pk wt, 0=no
C132: Lite cap shirt* | D132: 1 | E132: item(s) | F132: 5.5 | G132: 1 | I132: 1 | M132: =D132*F132*G132*I132 -> 5.5 | N132: =M132/16 -> 0.34375
C133: Lite silk shirt | D133: 1 | E133: item(s) | F133: 3.5 | G133: 1 | I133: 1 | M133: =D133*F133*G133*I133 -> 3.5 | N133: =M133/16 -> 0.21875
C134: Lite cap shirt, tee / long sleeve* | D134: 1 | E134: item(s) | F134: 4.25 | G134: 0 | I134: 1 | M134: 0 | N134: =M134/16 -> 0
C135: Cap shirt, grey, hooded* | D135: 1 | E135: item(s) | F135: 5.5 | G135: 0 | I135: 1 | M135: 0 | N135: 0
C136: Steel grey warm shirt* | D136: 1 | E136: item(s) | F136: 10 | G136: 1 | I136: 1 | M136: 10 | N136: 0.625
C137: Mid wt cap z-neck | D137: 1 | E137: item(s) | F137: 9 | G137: 0 | I137: 1 | M137: 0 | N137: 0
C138: Collared shirt | D138: 1 | E138: item(s) | F138: 8 | G138: 0 | I138: 1 | M138: 0 | N138: 0
C139: Blk wind wall jacket, N Face | D139: 1 | E139: item(s) | F139: 26.5 | G139: 0 | I139: 1 | M139: 0 | N139: 0
C140: Blk lined jacket, N Face | D140: 1 | E140: item(s) | F140: 18 | G140: 0 | I140: 1 | M140: 0 | N140: 0
C141: Red wind wall jacket, Marmot | D141: 1 | E141: item(s) | F141: 23.5 | G141: 0 | I141: 1 | M141: 0 | N141: 0
C142: Rain jacket, Marmot* | D142: 1 | E142: item(s) | F142: 12.25 | G142: 1 | I142: 1 | M142: 12.25 | N142: 0.765625
C143: Rain jacket, Columbia | D143: 0 | E143: item(s) | F143: 18 | G143: 0 | I143: 1 | M143: 0 | N143: 0
C144: Down jacket, blue | D144: 0 | E144: item(s) | F144: 24 | G144: 0 | I144: 1 | M144: 0 | N144: =M144/16 -> 0
C145: Dress jacket | D145: 0 | E145: item(s) | F145: 26.5 | G145: 0 | I145: 1 | M145: 0 | N145: 0
C146: Gloves, lite | D146: 1 | E146: item(s) | F146: 1 | G146: 1 | I146: 1 | M146: 1 | N146: 0.0625
C147: Sun-visor* | D147: 1 | E147: item(s) | F147: 2 | G147: 1 | I147: 1 | M147: 2 | N147: =M147/16 -> 0.125
C148: Hat | D148: 1 | E148: item(s) | F148: 5 | G148: 0 | I148: 1 | M148: 0 | N148: 0
C149: Lite cap long u'wear* | D149: 1 | E149: item(s) | F149: 4 | G149: 0 | I149: 0 | M149: 0 | N149: 0
C150: Lite cap long u'wear, spare* | D150: 1 | E150: item(s) | F150: 4 | G150: 0 | I150: 1 | M150: =D150*F150*G150*I150 -> 0 | N150: 0
C151: Lite silk long u'wear* | D151: 1 | E151: item(s) | F151: 4.5 | G151: 1 | I151: 0 | M151: 0 | N151: =M151/16 -> 0
C152: Mid wt cap u'wear | D152: 1 | E152: item(s) | F152: 8 | G152: 0 | I152: 1 | M152: =D152*F152*G152*I152 -> 0 | N152: 0
C153: Short u'wear* | D153: 1 | E153: item(s) | F153: 4 | G153: 1 | I153: 1 | M153: =D153*F153*G153*I153 -> 4 | N153: 0.25
C154: Shorts* | D154: 1 | E154: item(s) | F154: 9 | G154: 1 | I154: 1 | M154: 9 | N154: 0.5625
C155: Hiking pants* | D155: 1 | E155: item(s) | F155: 16 | G155: 1 | I155: 1 | M155: 16 | N155: 1
C156: Belt* | D156: 1 | E156: item(s) | F156: 2 | G156: 1 | I156: 0 | M156: 0 | N156: 0
C157: Jeans | D157: 1 | E157: item(s) | F157: 24 | G157: 0 | I157: 1 | M157: 0 | N157: 0
C158: Rain pants* | D158: 1 | E158: item(s) | F158: 9 | G158: 1 | I158: 1 | M158: 9 | N158: 0.5625
C159: Heavy socks*, wear on travel | D159: 1 | E159: item(s) | F159: 4.5 | G159: 1 | I159: 0 | M159: 0 | N159: 0
C160: Heavy socks* | D160: 1 | E160: item(s) | F160: 4.5 | G160: 1 | I160: 1 | M160: =D160*F160*G160*I160 -> 4.5 | N160: 0.28125
C161: Intermediate sox | D161: 1 | E161: item(s) | F161: 3 | G161: 1 | I161: 1 | M161: =D161*F161*G161*I161 -> 3 | N161: 0.1875
C162: Lite sox* | D162: 1 | E162: item(s) | F162: 2 | G162: 0 | I162: 1 | M162: 0 | N162: 0
C163: Bandana* | D163: 1 | E163: item(s) | F163: 1 | G163: 1 | I163: 0 | M163: 0 | N163: 0
C164: MSR Towel* | D164: 1 | E164: item(s) | F164: 2 | G164: 0 | I164: 1 | M164: 0 | N164: 0
C165: Spade | D165: 1 | E165: item(s) | F165: 3.5 | G165: 1 | I165: 1 | M165: =D165*F165*G165*I165 -> 3.5 | N165: =M165/16 -> 0.21875
C166: Bear vault | D166: 1 | E166: item(s) | F166: 41 | G166: 1 | I166: 1 | M166: 41 | N166: 2.5625
A167: 0 | C167: Stuff sack* | D167: 1 | E167: item(s) | F167: 2 | G167: 0 | I167: 1 | M167: 0 | N167: 0
C168: … sack liner* | D168: 1 | E168: item(s) | F168: 1 | G168: 1 | I168: 1 | M168: 1 | N168: 0.0625
C169: … sack straps* | D169: 1 | E169: item(s) | F169: 1 | G169: 1 | I169: 1 | M169: 1 | N169: 0.0625
A170: Clothes, total | M170: =SUM(M132:M169) -> 126.25 | N170: 7.890625
A172: Total pack | M172: =M54+M74+M110+M129+M170 -> 661.854127 | N172: =M172/16 -> 41.36588294

Sheet Travel-camping
A1: Trip length
B2: Days = | C2: =C3*7 -> 7
B3: Weeks = | C3: 1
B4: Months = | C4: =C3/4.35 -> 0.2298850575
A6: Travel-camping material is in a blue font; the numbers here are mostly over and above the numbers for backpacking; obviously much streamlining is possible and needed
A8: Class | B8: Sub-class
A9: Food | B9: Meal | D9: 1=take, 0=no | E9: unit | F9: oz/unit | G9: units/day | H9: /week | I9: /month | J9: weeks | K9: /trip | L9: oz (total) | M9: lb
B10: Breakfast
C11: Granola | D11: 0 | E11: cup | F11: 4 | H11: 5 | J11: =C3 -> 1 | L11: =D11*F11*H11*J11 -> 0 | M11: =L11/16 -> 0
C12: Milk powder | D12: 0 | E12: cup | F12: 6.5 | H12: 1 | J12: =C3 -> 1 | L12: =D12*F12*H12*J12 -> 0 | M12: =L12/16 -> 0
C13: Coffee | D13: 1 | E13: oz | F13: 1 | G13: 5 tbsp | H13: 10 | J13: =C3 -> 1 | L13: 10 | M13: 0.625
C14: Sugar | D14: 1 | E14: oz | F14: 1 | H14: 7 | J14: =C3 -> 1 | L14: 7 | M14: 0.4375
C15: Vitamins, meds, xtra ibuprofen | D15: 1 | E15: oz | F15: 1 | H15: 3.25 | J15: =C3 -> 1 | L15: 3.25 | M15: =L15/16 -> 0.203125
C16: Teas, drinks | D16: 0 | E16: oz | F16: 1 | K16: 1.5 | L16: =D16*F16*K16 -> 0 | M16: =L16/16 -> 0
C17: Condensed milk | D17: 1 | E17: can | F17: 14 | H17: 2 | J17: 1 | L17: =D17*F17*H17*J17 -> 28 | M17: =L17/16 -> 1.75
B18: Trail
C19: Sesame sticks | D19: 1 | E19: fist | F19: 1.333333333 | H19: 4 | J19: =C3 -> 1 | L19: 5.333333333 | M19: =L19/16 -> 0.3333333333
C20: Nuts | D20: 1 | E20: fist | F20: 1.666666667 | H20: 4 | J20: =C3 -> 1 | L20: 6.666666667 | M20: 0.4166666667
C21: Dried fruit | D21: 1 | E21: fist | F21: 2.166666667 | H21: 4 | J21: =C3 -> 1 | L21: 8.666666667 | M21: 0.5416666667
B22: Dinner
C23: Rice, instant | D23: 0 | E23: fist | F23: 1.333333333 | H23: 7 | J23: =C3 -> 1 | L23: 0 | M23: =L23/16 -> 0
C24: Beans | D24: 0 | E24: fist | F24: 1.666666667 | H24: 6 | J24: =C3 -> 1 | L24: 0 | M24: =L24/16 -> 0
C25: Ramen | D25: 1 | E25: packet | F25: 2.5 | H25: 5 | J25: =C3 -> 1 | L25: 12.5 | M25: 0.78125
C26: Broths | D26: 1 | E26: packet | F26: 0.5 | H26: 2 | J26: =C3 -> 1 | L26: 1 | M26: 0.0625
C27: Jerky | D27: 0 | E27: packet | F27: 3 | H27: 1 | J27: =C3 -> 1 | L27: 0 | M27: 0
C28: Fruit bars | D28: 1 | E28: bar | F28: 1.2 | H28: 5 | J28: =C3 -> 1 | L28: 6 | M28: 0.375
C29: Turmeric | D29: 1 | E29: oz | F29: 1 | H29: 1 | J29: =C3 -> 1 | L29: 1 | M29: 0.0625
C30: Jalapenos | D30: 0 | E30: jalapeno | F30: 0.5 | H30: 2 | J30: =C3 -> 1 | L30: 0 | M30: 0
C31: Garlic, packets | D31: 0 | E31: packet | F31: 1.5 | H31: 1 | J31: =C3 -> 1 | L31: 0 | M31: 0
C32: Onion, thumb dia | D32: 0 | E32: onion | F32: 6 | H32: 1 | J32: =C3 -> 1 | L32: 0 | M32: 0
C33: Spices | D33: 0 | E33: oz | F33: 0.5 | H33: 3 | J33: =C3 -> 1 | L33: 0 | M33: 0
C34: Salt | D34: 1 | E34: oz | F34: 1 | H34: 2 | J34: =C3 -> 1 | L34: 2 | M34: 0.125
C35: Veg oil | D35: 0 | E35: oz | F35: 1 | H35: 2 | J35: =C3 -> 1 | L35: 0 | M35: 0
B36: Stuff sacks | D36: 0 | E36: sack | F36: 4 | K36: 1 | L36: =D36*F36*K36 -> 0 | M36: 0
A37: Food, total | L37: =SUM(L11:L36) -> 91.41666667 | M37: =L37/16 -> 5.713541667
A39: Cooking... | D39: Count
C40: Utensils | D40: 0 | E40: item(s) | F40: 8.5 | K40: 1 | L40: =D40*F40 -> 0 | M40: =L40/16 -> 0
C42: Stove-MSR Dragonfly | D42: 0 | E42: item(s) | F42: 14.5 | K42: 1 | L42: =D42*F42 -> 0 | M42: =L42/16 -> 0
C43: Heat shield | D43: 0 | E43: item(s) | F43: 2.5 | K43: 1 | L43: 0 | M43: 0
C44: Pot, titanium | D44: 0 | E44: item(s) | F44: 8 | K44: 1 | L44: 0 | M44: 0
C45: Pot, stainless, 0.50 gal | D45: 0 | E45: item(s) | F45: 20 | K45: 1 | L45: 0 | M45: 0
C46: Pot, stainless, 0.25 gal | D46: 0 | E46: item(s) | F46: 13 | K46: 1 | L46: 0 | M46: 0
C47: Fuel bottle, 1 l tr/ 33oz | D47: 0 | E47: item(s) | F47: 7.6 | K47: 1 | L47: =D47*F47 -> 0 | M47: =L47/16 -> 0
C48: Fuel bottle, 591 ml / 20oz | D48: 1 | E48: item(s) | F48: 6 | K48: 1 | L48: =D48*F48 -> 6 | M48: =L48/16 -> 0.375
C49: Fuel bottle, 325 ml / 11oz | D49: 0 | E49: item(s) | F49: 4 | K49: 1 | L49: =D49*F49 -> 0 | M49: =L49/16 -> 0
C51: Fuel | E51: fl oz | F51: 0.7 | H51: 32 | L51: =F51*H51 -> 22.4 | M51: =L51/16 -> 1.4
C53: MSR Pocket Rocket (get?) | D53: 0 | E53: item(s) | F53: 2.6 | K53: 1 | L53: =D53*F53 -> 0 | M53: =L53/16 -> 0
C54: MSR 16 oz cannister-ask at Ad-Edge | D54: 0 | E54: item(s) | F54: 16 | K54: 1 | L54: 0 | M54: 0
A55: Cooking… total | L55: =SUM(L40:L51) -> 28.4 | M55: 1.775
A57: Hiking, travel | I57: include in pack weight, 0 = no
C58: Backpack, Osprey, Ejos | D58: 0 | E58: item(s) | F58: 43 | I58: 1 | L58: =D58*F58*I58 -> 0 | M58: =L58/16 -> 0
C59: Backpack, Osprey, Argon 85M | D59: 0 | E59: item(s) | F59: 104 | I59: 1 | L59: =D59*F59*I59 -> 0 | M59: =L59/16 -> 0
C60: Olive Jansport daypack | D60: 1 | E60: item(s) | F60: 17 | I60: 1 | L60: =D60*F60*I60 -> 17 | M60: =L60/16 -> 1.0625
C61: Binoculars | D61: 0 | E61: item(s) | F61: 8.5 | I61: 1 | L61: =D61*F61*I61 -> 0 | M61: =L61/16 -> 0
C62: Rifle, .30-06 | D62: 0 | E62: item(s) | F62: 144 | I62: 1 | L62: 0 | M62: 0
C63: Shoes, ankle high | D63: 0 | E63: item(s) | F63: 48 | I63: 0 | L63: 0 | M63: 0
C64: Shoes, running | D64: 0 | E64: item(s) | F64: 30 | I64: 0 | L64: 0 | M64: 0
C65: Sneakers | D65: 0 | E65: item(s) | F65: 29 | I65: 1 | L65: 0 | M65: 0
C66: Sandals | D66: 0 | E66: item(s) | F66: 19 | I66: 1 | L66: 0 | M66: 0
C67: Shoes, dress | D67: 1 | E67: item(s) | F67: 26 | I67: 1 | L67: 26 | M67: 1.625
C68: MSR Snowshoes | D68: 0 | E68: item(s) | F68: 59 | I68: 1 | L68: 0 | M68: 0
C69: … MSR Snowshoe extebsuibs | D69: 0 | E69: item(s) | F69: 17 | I69: 1 | L69: 0 | M69: 0
C70: Skis and poles | D70: 0 | E70: item(s) | F70: 118 | I70: 1 | L70: 0 | M70: 0
C71: Crampons | D71: 0 | E71: item(s) | F71: 40.75 | I71: 1 | L71: 0 | M71: 0
C72: Trekking poles, Leki | D72: 0 | E72: item(s) | F72: 20 | I72: 1 | L72: =D72*F72*I72 -> 0 | M72: =L72/16 -> 0
C73: Insect netting | D73: 0 | E73: item(s) | F73: 1.5 | I73: 1 | L73: 0 | M73: 0
C74: Pouch-misc items | D74: 0 | E74: item(s) | F74: 16.5 | I74: 1 | L74: 0 | M74: 0
C75: Albuterol | D75: 0 | E75: item(s) | F75: 1.5 | I75: 1 | L75: 0 | M75: 0
C76: Maps, paper | D76: 0 | E76: item(s) | F76: 9.5 | I76: 1 | L76: 0 | M76: 0
C77: Simple manual | D77: 0 | E77: item(s) | F77: 1 | I77: 1 | L77: 0 | M77: 0
C78: Camera | D78: 0 | E78: item(s) | F78: 6.5 | I78: 1 | L78: 0 | M78: 0
C79: Phone | D79: 0 | E79: item(s) | F79: 3.5 | I79: 1 | L79: 0 | M79: 0
C80: Cards, check, cash, key | D80: 0 | E80: item(s) | F80: 2 | I80: 1 | L80: 0 | M80: 0
C81: Batteries | D81: 0 | E81: item(s) | F81: 4.5 | I81: 1 | L81: 0 | M81: 0
C82: Watch | D82: 0 | E82: item(s) | F82: 2 | I82: 1 | L82: 0 | M82: 0
C83: Plastic bags | D83: 0 | E83: item(s) | F83: 0.5 | I83: 1 | L83: 0 | M83: 0
C85: H2O filter straw | D85: 0 | E85: item(s) | F85: 2 | I85: 1 | L85: =D85*F85*I85 -> 0 | M85: 0
C86: 64 oz Platypus H2O bladder | D86: 0 | E86: item(s) | F86: 6 | I86: 1 | L86: =D86*F86*I86 -> 0 | M86: 0
C87: 32 oz Nalgene H2O bottle | D87: 0 | E87: item(s) | F87: 7 | I87: 1 | L87: =D87*F87*I87 -> 0 | M87: 0
C88: H2O for platypus | D88: 0 | E88: oz | F88: 1 | G88: 64 | I88: 1 | L88: =D88*F88*G88*I88 -> 0 | M88: 0
C89: H2O for nalgene | D89: 0 | E89: oz | F89: 1 | G89: 32 | I89: 1 | L89: =D89*F89*G89*I89 -> 0 | M89: 0
A90: Hiking, total | L90: =SUM(L58:L89) -> 43 | M90: 2.6875
A92: Camping
C93: Tent (Nemo, Elite 1p) + footprint | D93: 0 | E93: items(s) | F93: 39 | L93: =D93*F93 -> 0 | M93: =L93/16 -> 0
C94: Tent (Sierra Designs, Flashlight) | D94: 0 | E94: items(s) | F94: 78 | L94: 0 | M94: 0
C95: Bivvy | D95: 0 | E95: items(s) | F95: 17 | L95: 0 | M95: 0
C96: Tarp 9'x9' | D96: 0 | E96: items(s) | F96: 33 | L96: 0 | M96: 0
C97: Tarp 8'x8' | D97: 0 | E97: items(s) | F97: 25 | L97: 0 | M97: 0
C98: Ground sheet (separate) | D98: 0 | E98: items(s) | F98: 13 | L98: 0 | M98: 0
C99: Sleeping bag, Western Mntnring | D99: 0 | E99: items(s) | F99: 18 | L99: 0 | M99: 0
C100: Sleeping bag, Marmot | D100: 0 | E100: items(s) | F100: 34 | L100: 0 | M100: 0
C101: Air mattress | D101: 0 | E101: items(s) | F101: 14.5 | L101: 0 | M101: 0
C102: Rope, straps | D102: 0 | E102: items(s) | F102: 3.5 | L102: 0 | M102: 0
C103: Med sack | D103: 0 | E103: items(s) | F103: 16 | L103: 0 | M103: 0
C104: Toilet | D104: 1 | E104: items(s) | F104: 3.5 | L104: 3.5 | M104: 0.21875
A105: Camping, total | L105: =SUM(L93:L104) -> 3.5 | M105: 0.21875
A107: Clothes | B107: * summer, general | D107: Count | G107: 1=take, 0=no | I107: include in pk wt, 0=no
C108: Lite cap shirt* | D108: 0 | E108: item(s) | F108: 4.25 | G108: 1 | I108: 1 | L108: =D108*F108*G108*I108 -> 0 | M108: =L108/16 -> 0
C109: Lite cap shirt, tee / long sleeve* | D109: 0 | E109: item(s) | F109: 4.25 | G109: 1 | I109: 1 | L109: =D109*F109*G109*I109 -> 0 | M109: =L109/16 -> 0
C110: Cap shirt, grey, hooded* | D110: 0 | E110: item(s) | F110: 5.5 | G110: 1 | I110: 1 | L110: 0 | M110: 0
C111: Steel grey warm shirt* | D111: 0 | E111: item(s) | F111: 10 | G111: 1 | I111: 0 | L111: 0 | M111: 0
C112: Mid wt cap z-neck | D112: 0 | E112: item(s) | F112: 9 | G112: 0 | I112: 1 | L112: 0 | M112: 0
C113: Collared shirt | D113: 1 | E113: item(s) | F113: 8 | G113: 0 | I113: 1 | L113: 0 | M113: 0
C114: Blk wind wall jacket, N Face | D114: 0 | E114: item(s) | F114: 26.5 | G114: 0 | I114: 1 | L114: 0 | M114: 0
C115: Blk lined jacket, N Face | D115: 0 | E115: item(s) | F115: 18 | G115: 0 | I115: 1 | L115: 0 | M115: 0
C116: Red wind wall jacket, Marmot | D116: 0 | E116: item(s) | F116: 23.5 | G116: 0 | I116: 1 | L116: 0 | M116: 0
C117: Rain jacket, Marmot* | D117: 1 | E117: item(s) | F117: 12.25 | G117: 1 | I117: 1 | L117: 12.25 | M117: 0.765625
C118: Rain jacket, Columbia | D118: 1 | E118: item(s) | F118: 18 | G118: 0 | I118: 1 | L118: 0 | M118: 0
C119: Down jacket, blue | D119: 1 | E119: item(s) | F119: 24 | G119: 0 | I119: 1 | L119: 0 | M119: 0
C120: Dress jacket | D120: 1 | E120: item(s) | F120: 26.5 | G120: 0 | I120: 1 | L120: 0 | M120: 0
C121: Gloves, lite | D121: 0 | E121: item(s) | F121: 1 | G121: 0 | I121: 1 | L121: 0 | M121: 0
C122: Sun-visor* | D122: 0 | E122: item(s) | F122: 2 | G122: 1 | I122: 1 | L122: 0 | M122: 0
C123: Hat | D123: 0 | E123: item(s) | F123: 5 | G123: 0 | I123: 1 | L123: 0 | M123: 0
C124: Lite cap long u'wear* | D124: 0 | E124: item(s) | F124: 4 | G124: 1 | I124: 0 | L124: 0 | M124: 0
C125: Lite cap long u'wear, spare* | D125: 0 | E125: item(s) | F125: 4 | G125: 1 | I125: 1 | L125: 0 | M125: 0
C126: Mid wt cap u'wear | D126: 0 | E126: item(s) | F126: 8 | G126: 0 | I126: 1 | L126: 0 | M126: 0
C127: Short u'wear* | D127: 0 | E127: item(s) | F127: 4 | G127: 1 | I127: 1 | L127: 0 | M127: 0
C128: Shorts* | D128: 0 | E128: item(s) | F128: 9 | G128: 1 | I128: 1 | L128: 0 | M128: 0
C129: Hiking pants* | D129: 0 | E129: item(s) | F129: 16 | G129: 1 | I129: 0 | L129: 0 | M129: 0
C130: Belt* | D130: 0 | E130: item(s) | F130: 2 | G130: 1 | I130: 0 | L130: 0 | M130: 0
C131: Jeans | D131: 1 | E131: item(s) | F131: 24 | G131: 1 | I131: 1 | L131: 24 | M131: 1.5
C132: Rain pants* | D132: 0 | E132: item(s) | F132: 9 | G132: 1 | I132: 1 | L132: 0 | M132: 0
C133: Heavy socks*, wear on travel | D133: 0 | E133: item(s) | F133: 4.5 | G133: 1 | I133: 0 | L133: 0 | M133: 0
C134: Heavy socks* | D134: 0 | E134: item(s) | F134: 4.5 | G134: 1 | I134: 1 | L134: 0 | M134: 0
C135: Intermediate sox | D135: 0 | E135: item(s) | F135: 3 | G135: 0 | I135: 1 | L135: 0 | M135: 0
C136: Lite sox* | D136: 0 | E136: item(s) | F136: 2 | G136: 1 | I136: 1 | L136: 0 | M136: 0
C137: Bandana* | D137: 0 | E137: item(s) | F137: 1 | G137: 1 | I137: 0 | L137: 0 | M137: 0
C138: MSR Towel* | D138: 0 | E138: item(s) | F138: 2 | G138: 1 | I138: 1 | L138: 0 | M138: 0
C139: Stuff sack* | D139: 0 | E139: item(s) | F139: 2 | G139: 1 | I139: 1 | L139: 0 | M139: 0
C140: … sack liner* | D140: 0 | E140: item(s) | F140: 1 | G140: 1 | I140: 1 | L140: 0 | M140: 0
C141: … sack straps* | D141: 0 | E141: item(s) | F141: 1 | G141: 1 | I141: 1 | L141: 0 | M141: 0
A142: Clothes, total | L142: =SUM(L108:L141) -> 36.25 | M142: 2.265625
A144: Total pack | L144: =L37+L55+L90+L105+L142 -> 202.5666667 | M144: =L144/16 -> 12.66041667

Sheet Planning
A1: Planning and preparation
B2: hiking list | C2: (html)
B3: hiking list-long | C3: (html)
B5: Main
C6: plan-prep aim-what-where-itinerary-travel > tickets, permits, hikes, air-forest conditions
C7: trial pack + hike-with-old-pack
C8: last min mail home, feet, fresh items
B10: Get
C11: hiking gear and supplies
C12: light stove
C13: town and camping supplies
C14: short sleeve t-shirt
C15: lite z-neck shirt
A18: Total pack weight for backpacking and travel = | F18: =Backpacking!M172+'Travel-camping'!L144 -> 864.4207937 | G18: oz | H18: =F18/16 -> 54.0262996 | I18: lb
